fUSD/lending_fUSD_20260506
["ID","MTS","AMOUNT","RATE_DAILY","PERIOD"]
[421725254,1778068234000,-179.56133664,0.00033,120]
[421725260,1778068234000,-261.0,0.00033226,30]
[421725257,1778068234000,-193.9169622,0.00033,120]
[421725262,1778068234000,-160.0,0.00033226,30]
[421725259,1778068234000,-155.0,0.00033226,30]
[421725258,1778068234000,-502.0,0.00033011,8]
[421725261,1778068234000,-159.0,0.00033226,30]
[421725263,1778068234000,-157.0,0.00033226,30]
[421725265,1778068234000,-3933.97,0.00033556,2]
[421725266,1778068234000,-200.0,0.00033559,2]
[421725267,1778068234000,-166.66,0.0003376,30]
[421725269,1778068234000,-767.6767625,0.000339,120]
[421725270,1778068234000,-199.81052223,0.000339,120]
[421725241,1778068234000,-172.26,0.00032248,2]
[421725256,1778068234000,-199.81052223,0.00033,120]
[421725239,1778068234000,-151.0,0.00032226,30]
[421725271,1778068234000,-193.9169622,0.000339,120]
[421725237,1778068234000,-157.0,0.00032226,30]
[421725202,1778068234000,-151.0,0.00030239,2]
[421725203,1778068234000,-166.66,0.00030545,30]
[421725204,1778068234000,-576.59477674,0.00031148,2]
[421725205,1778068234000,-161.0,0.00031226,30]
[421725206,1778068234000,-155.0,0.00031226,30]
[421725208,1778068234000,-159.0,0.00031226,30]
[421725207,1778068234000,-261.0,0.00031226,30]
[421725209,1778068234000,-153.0,0.00031226,30]
[421725213,1778068234000,-166.66,0.00031617,30]
[421725215,1778068234000,-827.52988425,0.00032,120]
[421725216,1778068234000,-179.56133664,0.00032,120]
[421725210,1778068234000,-160.0,0.00031226,30]
[421725235,1778068234000,-160.0,0.00032226,30]
[421725211,1778068234000,-157.0,0.00031226,30]
[421725212,1778068234000,-151.0,0.00031226,30]
[421725217,1778068234000,-767.6767625,0.00032,120]
[421725219,1778068234000,-193.9169622,0.00032,120]
[421725231,1778068234000,-261.0,0.00032226,30]
[421725233,1778068234000,-159.0,0.00032226,30]
[421725222,1778068234000,-1000.0,0.00032199,2]
[421725223,1778068234000,-151.0,0.0003221,5]
[421725218,1778068234000,-199.81052223,0.00032,120]
[421725221,1778068234000,-1182.42,0.00032096,2]
[421725220,1778068234000,-254.81702264,0.00032,120]
[421725229,1778068234000,-155.0,0.00032226,30]
[421725227,1778068234000,-500.0,0.00032224,2]
[421725214,1778068234000,-596.65301348,0.00031811,2]
[421725275,1778068234000,-151.0,0.00034182,7]
[421725302,1778068234000,-155.0,0.00036226,30]
[421725274,1778068234000,-4187.11,0.00034102,2]
[421725306,1778068234000,-151.0,0.00036226,30]
[421725311,1778068234000,-3536.0,0.0003672,2]
[421725304,1778068234000,-159.0,0.00036226,30]
[421725305,1778068234000,-157.0,0.00036226,30]
[421725308,1778068234000,-18470.6702,0.00036619,2]
[421725307,1778068234000,-2000.0,0.0003642,2]
[421725309,1778068234000,-337.68,0.0003666,2]
[421725312,1778068234000,-1352.0,0.0003672,2]
[421725313,1778068234000,-925.0,0.0003672,2]
[421725314,1778068234000,-1268.0,0.0003672,2]
[421725316,1778068234000,-417.0,0.0003672,2]
[421725315,1778068234000,-1221.0,0.0003672,2]
[421725310,1778068234000,-624.0,0.0003672,2]
[421725320,1778068234000,-150.0,0.00036888,7]
[421725317,1778068234000,-3625.0,0.0003672,2]
[421725321,1778068234000,-155.0,0.00037226,30]
[421725323,1778068234000,-160.0,0.00037226,30]
[421725324,1778068234000,-157.0,0.00037226,30]
[421725318,1778068234000,-150.0,0.00036888,7]
[421725319,1778068234000,-150.0,0.00036888,7]
[421725325,1778068234000,-155.0,0.00037226,30]
[421725327,1778068234000,-500.0,0.00037676,120]
[421725329,1778068234000,-3418.96999916,0.00037804,2]
[421725330,1778068234000,-150.0,0.000379,20]
[421725328,1778068234000,-209.56355865,0.00037677,2]
[421725272,1778068234000,-165.36,0.00033917,120]
[421725322,1778068234000,-261.0,0.00037226,30]
[421725326,1778068234000,-337.68,0.00037512,2]
[421725331,1778068234000,-500.0,0.00037902,30]
[421725301,1778068234000,-151.0,0.00036153,30]
[421725303,1778068234000,-261.0,0.00036226,30]
[421725268,1778068234000,-827.52988425,0.000339,120]
[421725277,1778068234000,-261.0,0.00034226,30]
[421725276,1778068234000,-155.0,0.00034226,30]
[421725278,1778068234000,-159.0,0.00034226,30]
[421725279,1778068234000,-169.0,0.00034226,30]
[421725280,1778068234000,-157.0,0.00034226,30]
[421725282,1778068234000,-2500.0,0.00034393,120]
[421725281,1778068234000,-151.0,0.00034226,30]
[421725284,1778068234000,-1885.056,0.00034811,40]
[421725283,1778068234000,-581.0,0.00034548,2]
[421725286,1778068234000,-337.68,0.00034955,2]
[421725285,1778068234000,-184.365,0.00034811,40]
[421725273,1778068234000,-337.68,0.00034102,2]
[421725289,1778068234000,-199.81052223,0.00035,120]
[421725287,1778068234000,-827.52988425,0.00035,120]
[421725296,1778068234000,-160.16,0.00035509,2]
[421725298,1778068234000,-502.0,0.00035947,11]
[421725291,1778068234000,-155.0,0.00035226,30]
[421725297,1778068234000,-337.68,0.00035807,2]
[421725293,1778068234000,-159.0,0.00035226,30]
[421725300,1778068234000,-767.6767625,0.00036,120]
[421725295,1778068234000,-151.0,0.00035226,30]
[421725292,1778068234000,-261.0,0.00035226,30]
[421725299,1778068234000,-827.52988425,0.00036,120]
[421725290,1778068234000,-4584.91,0.00035217,10]
[421725288,1778068234000,-767.6767625,0.00035,120]
[421725294,1778068234000,-157.0,0.00035226,30]
[421725370,1778068235000,-2288.34201693,0.00037903,15]
[421725367,1778068235000,-2288.34201693,0.00037903,15]
[421725366,1778068235000,-2288.34201693,0.00037903,15]
[421725372,1778068235000,-2288.34201693,0.00037903,15]
[421725371,1778068235000,-2288.34201693,0.00037903,15]
[421725364,1778068235000,-2288.34201693,0.00037903,15]
[421725363,1778068235000,-2288.34201693,0.00037903,15]
[421725369,1778068235000,-2288.34201693,0.00037903,15]
[421725361,1778068235000,-2288.34201693,0.00037903,15]
[421725365,1778068235000,-2288.34201693,0.00037903,15]
[421725362,1778068235000,-2288.34201693,0.00037903,15]
[421725377,1778068235000,-2288.34201693,0.00037903,15]
[421725375,1778068235000,-2288.34201693,0.00037903,15]
[421725376,1778068235000,-2288.34201693,0.00037903,15]
[421725380,1778068235000,-2288.34201693,0.00037903,15]
[421725373,1778068235000,-2288.34201693,0.00037903,15]
[421725381,1778068235000,-2288.34201693,0.00037903,15]
[421725382,1778068235000,-2288.34201693,0.00037903,15]
[421725379,1778068235000,-2288.34201693,0.00037903,15]
[421725378,1778068235000,-2288.34201693,0.00037903,15]
[421725383,1778068235000,-2288.34201693,0.00037903,15]
[421725384,1778068235000,-2288.34201693,0.00037903,15]
[421725360,1778068235000,-2288.34201693,0.00037903,15]
[421725386,1778068235000,-2288.34201693,0.00037903,15]
[421725374,1778068235000,-2288.34201693,0.00037903,15]
[421725356,1778068235000,-2288.34201693,0.00037903,15]
[421725344,1778068235000,-2288.34201693,0.00037903,15]
[421725359,1778068235000,-2288.34201693,0.00037903,15]
[421725385,1778068235000,-2288.34201693,0.00037903,15]
[421725333,1778068235000,-500.0,0.00037903,15]
[421725334,1778068235000,-2288.34201693,0.00037903,15]
[421725332,1778068235000,-2288.34201693,0.00037903,15]
[421725335,1778068235000,-500.0,0.00037903,15]
[421725336,1778068235000,-2288.34201693,0.00037903,15]
[421725337,1778068235000,-2288.34201693,0.00037903,15]
[421725339,1778068235000,-2288.34201693,0.00037903,15]
[421725345,1778068235000,-2288.34201693,0.00037903,15]
[421725342,1778068235000,-2288.34201693,0.00037903,15]
[421725340,1778068235000,-2288.34201693,0.00037903,15]
[421725341,1778068235000,-500.0,0.00037903,15]
[421725347,1778068235000,-2288.34201693,0.00037903,15]
[421725338,1778068235000,-500.0,0.00037903,15]
[421725346,1778068235000,-2288.34201693,0.00037903,15]
[421725343,1778068235000,-370.19928363,0.00037903,15]
[421725348,1778068235000,-2288.34201693,0.00037903,15]
[421725349,1778068235000,-2288.34201693,0.00037903,15]
[421725351,1778068235000,-2288.34201693,0.00037903,15]
[421725354,1778068235000,-2288.34201693,0.00037903,15]
[421725358,1778068235000,-2288.34201693,0.00037903,15]
[421725357,1778068235000,-2288.34201693,0.00037903,15]
[421725350,1778068235000,-2288.34201693,0.00037903,15]
[421725353,1778068235000,-2288.34201693,0.00037903,15]
[421725352,1778068235000,-2288.34201693,0.00037903,15]
[421725355,1778068235000,-2288.34201693,0.00037903,15]
[421725389,1778068235000,-54286.26165494,0.00037905,2]
[421725368,1778068235000,-2288.34201693,0.00037903,15]
[421725388,1778068235000,-2288.34201693,0.00037903,15]
[421725422,1778068235000,-300.0,0.00038222,2]
[421725417,1778068235000,-463.08064867,0.00038222,2]
[421725421,1778068235000,-300.0,0.00038222,2]
[421725419,1778068235000,-451.13853711,0.00038222,2]
[421725414,1778068235000,-309.07064608,0.00038222,2]
[421725418,1778068235000,-481.18706949,0.00038222,2]
[421725425,1778068235000,-300.0,0.00038222,2]
[421725426,1778068235000,-300.0,0.00038222,2]
[421725427,1778068235000,-1092.83356842,0.00038222,2]
[421725431,1778068235000,-300.0,0.00038222,2]
[421725430,1778068235000,-300.0,0.00038222,2]
[421725432,1778068235000,-491.85958444,0.00038222,2]
[421725437,1778068235000,-891.9241332,0.00038222,2]
[421725429,1778068235000,-561.70948187,0.00038222,2]
[421725433,1778068235000,-603.45144378,0.00038222,2]
[421725435,1778068235000,-526.86051061,0.00038222,2]
[421725434,1778068235000,-300.0,0.00038222,2]
[421725436,1778068235000,-1065.13491717,0.00038222,2]
[421725439,1778068235000,-724.83131769,0.00038222,2]
[421725438,1778068235000,-309.13065885,0.00038222,2]
[421725441,1778068235000,-300.0,0.00038222,2]
[421725444,1778068235000,-852.7601399,0.00038222,2]
[421725440,1778068235000,-301.2859328,0.00038222,2]
[421725443,1778068235000,-472.4909776,0.00038222,2]
[421725387,1778068235000,-2288.34201693,0.00037903,15]
[421725415,1778068235000,-862.96230178,0.00038222,2]
[421725423,1778068235000,-483.27319916,0.00038222,2]
[421725428,1778068235000,-300.0,0.00038222,2]
[421725416,1778068235000,-310.3725982,0.00038222,2]
[421725391,1778068235000,-151.0,0.00038125,30]
[421725420,1778068235000,-525.26004302,0.00038222,2]
[421725390,1778068235000,-274.930017,0.00037905,120]
[421725394,1778068235000,-495.86197898,0.00038222,2]
[421725392,1778068235000,-500.0,0.00038221,2]
[421725393,1778068235000,-491.85958444,0.00038222,2]
[421725395,1778068235000,-378.75079938,0.00038222,2]
[421725396,1778068235000,-603.45144378,0.00038222,2]
[421725398,1778068235000,-526.86051061,0.00038222,2]
[421725400,1778068235000,-891.9241332,0.00038222,2]
[421725399,1778068235000,-1065.13491717,0.00038222,2]
[421725402,1778068235000,-724.83131769,0.00038222,2]
[421725403,1778068235000,-301.2859328,0.00038222,2]
[421725397,1778068235000,-300.0,0.00038222,2]
[421725408,1778068235000,-852.7601399,0.00038222,2]
[421725424,1778068235000,-309.32134718,0.00038222,2]
[421725401,1778068235000,-309.13065885,0.00038222,2]
[421725412,1778068235000,-300.0,0.00038222,2]
[421725411,1778068235000,-343.40295571,0.00038222,2]
[421725410,1778068235000,-300.0,0.00038222,2]
[421725407,1778068235000,-300.0,0.00038222,2]
[421725413,1778068235000,-1145.24599896,0.00038222,2]
[421725406,1778068235000,-300.00000001,0.00038222,2]
[421725409,1778068235000,-1793.38851355,0.00038222,2]
[421725405,1778068235000,-300.06118393,0.00038222,2]
[421725404,1778068235000,-300.0,0.00038222,2]
[421725442,1778068235000,-300.06118393,0.00038222,2]
[421725456,1778068236000,-300.0,0.00038222,2]
[421725459,1778068236000,-309.32134718,0.00038222,2]
[421725460,1778068236000,-314.68486882,0.00038222,2]
[421725458,1778068236000,-483.27319916,0.00038222,2]
[421725465,1778068236000,-603.45144378,0.00038222,2]
[421725466,1778068236000,-300.0,0.00038222,2]
[421725467,1778068236000,-526.86051061,0.00038222,2]
[421725472,1778068236000,-1560.0,0.00038356,30]
[421725468,1778068236000,-1065.13491717,0.00038222,2]
[421725457,1778068236000,-300.0,0.00038222,2]
[421725464,1778068236000,-491.85958444,0.00038222,2]
[421725463,1778068236000,-300.0,0.00038222,2]
[421725449,1778068236000,-309.07064608,0.00038222,2]
[421725462,1778068236000,-1092.83356842,0.00038222,2]
[421725453,1778068236000,-481.18706949,0.00038222,2]
[421725461,1778068236000,-300.0,0.00038222,2]
[421725455,1778068236000,-300.0,0.00038222,2]
[421725452,1778068236000,-463.08064867,0.00038222,2]
[421725446,1778068236000,-300.0,0.00038222,2]
[421725451,1778068236000,-310.3725982,0.00038222,2]
[421725447,1778068236000,-343.40295571,0.00038222,2]
[421725445,1778068236000,-1793.38851355,0.00038222,2]
[421725448,1778068236000,-1145.24599896,0.00038222,2]
[421725450,1778068236000,-862.96230178,0.00038222,2]
[421725470,1778068236000,-3418.96999908,0.00038248,2]
[421725454,1778068236000,-451.13853711,0.00038222,2]
[421725469,1778068236000,-891.9241332,0.00038222,2]
[421725476,1778068236000,-801.0,0.00038724,30]
[421725474,1778068236000,-1560.0,0.0003863,30]
[421725473,1778068236000,-167.0,0.00038586,120]
[421725500,1778068236000,-272.12352312,0.0003972,2]
[421725498,1778068236000,-11.28418832,0.0003972,2]
[421725494,1778068236000,-925.0,0.0003972,2]
[421725495,1778068236000,-1268.0,0.0003972,2]
[421725496,1778068236000,-1221.0,0.0003972,2]
[421725497,1778068236000,-405.71581168,0.0003972,2]
[421725492,1778068236000,-1372.94174989,0.0003972,2]
[421725490,1778068236000,-624.0,0.0003972,2]
[421725488,1778068236000,-3260.27062013,0.0003958,2]
[421725491,1778068236000,-2163.05825011,0.0003972,2]
[421725489,1778068236000,-2771.5906,0.00039616,30]
[421725499,1778068236000,-460.56185815,0.0003972,2]
[421725493,1778068236000,-1352.0,0.0003972,2]
[421725485,1778068236000,-177.96,0.00039451,14]
[421725481,1778068236000,-214.60306816,0.00038904,30]
[421725475,1778068236000,-3418.96999908,0.00038692,2]
[421725486,1778068236000,-1560.0,0.00039452,30]
[421725487,1778068236000,-158.69937895,0.0003958,2]
[421725478,1778068236000,-1605.54758671,0.00038799,2]
[421725477,1778068236000,-486.0,0.00038724,30]
[421725479,1778068236000,-502.0,0.00038884,14]
[421725480,1778068236000,-1560.0,0.00038904,30]
[421725482,1778068236000,-150.0,0.00038937,7]
[421725483,1778068236000,-3418.96999908,0.00039136,2]
[421725484,1778068236000,-1560.0,0.00039178,30]
[421725471,1778068236000,-244.4893,0.00038351,2]
[421725510,1778068238000,-250.0,0.00039726,120]
[421725513,1778068238000,-3520.51152909,0.000398,2]
[421725514,1778068238000,-3000.0,0.000398,30]
[421725518,1778068238000,-2403.8167257,0.000399,30]
[421725509,1778068238000,-668.0,0.0003972,30]
[421725515,1778068238000,-5000.0,0.0003986,2]
[421725506,1778068238000,-371.14842887,0.0003972,2]
[421725508,1778068238000,-968.0,0.0003972,30]
[421725507,1778068238000,-81.00555195,0.0003972,2]
[421725503,1778068238000,-301.2859328,0.00038222,2]
[421725502,1778068238000,-724.83131769,0.00038222,2]
[421725504,1778068238000,-2440.16063791,0.0003972,2]
[421725501,1778068238000,-309.13065885,0.00038222,2]
[421725512,1778068238000,-2164.90244805,0.000398,2]
[421725511,1778068238000,-1560.0,0.00039726,30]
[421725516,1778068238000,-2232.17180038,0.0003986,2]
[421725530,1778068238000,-3000.0,0.000399,30]
[421725522,1778068238000,-3000.0,0.000399,60]
[421725538,1778068238000,-250.0,0.00039945,90]
[421725537,1778068238000,-636.38621364,0.000399,60]
[421725535,1778068238000,-278.943253,0.000399,60]
[421725517,1778068238000,-371.0,0.00039893,5]
[421725531,1778068238000,-282.04776086,0.000399,2]
[421725534,1778068238000,-380.52932165,0.000399,60]
[421725532,1778068238000,-1396.68818692,0.000399,60]
[421725536,1778068238000,-307.45302479,0.000399,60]
[421725539,1778068238000,-2111.38394231,0.00039957,2]
[421725527,1778068238000,-3000.0,0.000399,60]
[421725526,1778068238000,-3000.0,0.000399,60]
[421725524,1778068238000,-3000.0,0.000399,30]
[421725525,1778068238000,-3000.84967865,0.000399,30]
[421725523,1778068238000,-3000.0,0.000399,30]
[421725521,1778068238000,-596.1832743,0.000399,30]
[421725528,1778068238000,-3000.0,0.000399,120]
[421725561,1778068240000,-151.0,0.0003996,30]
[421725564,1778068240000,-151.0,0.0003996,30]
[421725556,1778068240000,-500.0,0.00039959,2]
[421725552,1778068240000,-300.06118393,0.00038222,2]
[421725554,1778068240000,-473.06111669,0.00039957,2]
[421725567,1778068240000,-151.0,0.0003996,30]
[421725551,1778068240000,-300.0,0.00038222,2]
[421725555,1778068240000,-486.0,0.00039957,30]
[421725557,1778068240000,-200906.1207991,0.0003996,2]
[421725553,1778068240000,-1070.36505781,0.00038799,2]
[421725563,1778068240000,-1488.8606219,0.0003996,2]
[421725571,1778068240000,-151.0,0.0003996,30]
[421725569,1778068240000,-151.0,0.0003996,30]
[421725570,1778068240000,-151.0,0.0003996,30]
[421725568,1778068240000,-151.0,0.0003996,30]
[421725560,1778068240000,-7309.8971206,0.0003996,2]
[421725565,1778068240000,-151.0,0.0003996,30]
[421725566,1778068240000,-151.0,0.0003996,30]
[421725562,1778068240000,-153.968219,0.0003996,30]
[421725559,1778068240000,-2961.4547013,0.0003996,2]
[421725558,1778068240000,-6885.5667412,0.0003996,2]
[421725585,1778068241000,-150.0,0.00039973,5]
[421725588,1778068241000,-175.33,0.00039999,120]
[421725595,1778068241000,-500.0,0.00039999,31]
[421725589,1778068241000,-500.0,0.00039999,30]
[421725586,1778068241000,-300.0,0.00039999,10]
[421725577,1778068241000,-151.0,0.0003996,30]
[421725575,1778068241000,-151.0,0.0003996,30]
[421725574,1778068241000,-151.0,0.0003996,30]
[421725576,1778068241000,-151.0,0.0003996,30]
[421725579,1778068241000,-192.873834,0.0003996,30]
[421725572,1778068241000,-241.35083,0.0003996,30]
[421725582,1778068241000,-151.0,0.0003996,30]
[421725580,1778068241000,-192.873834,0.0003996,30]
[421725578,1778068241000,-192.873834,0.0003996,30]
[421725587,1778068241000,-1078.84688241,0.00039999,30]
[421725590,1778068241000,-206.16281339,0.00039999,30]
[421725594,1778068241000,-154.25795905,0.00039999,31]
[421725591,1778068241000,-168.65185757,0.00039999,30]
[421725581,1778068241000,-192.873834,0.0003996,30]
[421725583,1778068241000,-151.0,0.0003996,30]
[421725592,1778068241000,-500.0,0.00039999,31]
[421725597,1778068241000,-156.48951136,0.00039999,120]
[421725596,1778068241000,-228.51620358,0.00039999,31]
[421725598,1778068241000,-50000.0,0.0004,49]
[421725599,1778068241000,-154.0,0.0004,5]
[421725604,1778068241000,-1525.26389508,0.0004,120]
[421725602,1778068241000,-1560.0,0.0004,30]
[421725601,1778068241000,-200.0,0.0004,30]
[421725600,1778068241000,-65284.19535934,0.0004,48]
[421725603,1778068241000,-24171.89763281,0.0004,120]
[421725593,1778068241000,-321.3954661,0.00039999,31]
[421725584,1778068241000,-310.0,0.00039973,68]
[421725614,1778068246000,-3978.22127553,0.0003672,2]
[421725613,1778068246000,-184.12194667,0.00035217,10]
[421725620,1778068248000,-1337.71693204,0.00025786,2]
[421725643,1778068249000,-577.8484,0.00025786,2]
[421725621,1778068249000,-894.91738156,0.00025786,2]
[421725652,1778068261000,2500.0,0.00027961,120]
[421725651,1778068261000,2500.0,0.00028364,120]
[421725654,1778068262000,300.0,0.00027961,120]
[421725653,1778068262000,300.0,0.00028364,120]
[421725655,1778068263000,600.0,0.00028364,120]
[421725656,1778068263000,623.34662564,0.00027961,120]
[421725658,1778068692000,5000.0,0.0003013,120]
[421725659,1778068697000,5000.0,0.0003013,120]
[421725660,1778068700000,5000.0,0.0003013,120]
[421725675,1778069038000,211.03,0.00028945,120]
[421725677,1778069073000,10000.01,0.00012,2]
[421725676,1778069073000,10000.01,0.00012,2]
[421725679,1778069074000,10000.01,0.00012,2]
[421725680,1778069074000,10000.01,0.00012,2]
[421725678,1778069074000,10000.01,0.00012,2]
[421725682,1778069074000,10000.01,0.00012,2]
[421725683,1778069074000,6287.14607116,0.00012,2]
[421725681,1778069074000,10000.01,0.00012,2]
[421725684,1778069100000,526.17874041,0.0001,2]
[421725687,1778069368000,-183.98,0.00014,2]
[421725686,1778069368000,-250.0,0.00014,2]
[421725689,1778069368000,-1598.94,0.00014765,2]
[421725691,1778069368000,-150.0,0.0001494,2]
[421725688,1778069368000,-300.0,0.00014495,2]
[421725693,1778069368000,-1200.0,0.00014999,2]
[421725695,1778069368000,-300.0,0.00014999,2]
[421725692,1778069368000,-1791.02892823,0.00014989,2]
[421725690,1778069368000,-152.42623429,0.0001484,2]
[421725696,1778069368000,-34743.30023748,0.00015,2]
[421725694,1778069368000,-150.0,0.00014999,2]
[421725708,1778069433000,-62500.80107755,0.00015,2]
[421725707,1778069433000,-1803.64591351,0.00015,2]
[421725705,1778069433000,-1200.0,0.00014999,2]
[421725706,1778069433000,-903.43825553,0.00015,2]
[421725711,1778069434000,-340.79334349,0.00015,2]
[421725709,1778069434000,-642.03266483,0.00015,2]
[421725710,1778069434000,-933.29910589,0.00015,2]
[421725723,1778069438000,-380.52932165,0.00015,2]
[421725724,1778069438000,-788.45865194,0.00015,2]
[421725722,1778069438000,-26275.76890073,0.00015,2]
[421725764,1778069440000,-500.0,0.00016498,2]
[421725739,1778069440000,-906.11196126,0.00015,2]
[421725740,1778069440000,-419.31848685,0.00015,2]
[421725738,1778069440000,-321.21898595,0.00015,2]
[421725742,1778069440000,-33414.85559333,0.00015,2]
[421725752,1778069440000,-500.0,0.00016498,2]
[421725741,1778069440000,-2740.0,0.00015,2]
[421725749,1778069440000,-537.93328249,0.00016498,2]
[421725751,1778069440000,-500.0,0.00016498,2]
[421725746,1778069440000,-300.0,0.00016416,2]
[421725750,1778069440000,-500.0,0.00016498,2]
[421725748,1778069440000,-1214.25,0.00016438,2]
[421725745,1778069440000,-255.0,0.00016124,2]
[421725744,1778069440000,-300.0,0.00016,2]
[421725743,1778069440000,-2765.74807411,0.0001524,2]
[421725747,1778069440000,-763.1,0.00016438,2]
[421725761,1778069440000,-500.0,0.00016498,2]
[421725763,1778069440000,-500.0,0.00016498,2]
[421725762,1778069440000,-500.0,0.00016498,2]
[421725759,1778069440000,-637.73635191,0.00016498,2]
[421725757,1778069440000,-500.0,0.00016498,2]
[421725760,1778069440000,-500.0,0.00016498,2]
[421725753,1778069440000,-500.0,0.00016498,2]
[421725756,1778069440000,-500.0,0.00016498,2]
[421725754,1778069440000,-500.0,0.00016498,2]
[421725755,1778069440000,-500.0,0.00016498,2]
[421725758,1778069440000,-500.0,0.00016498,2]
[421725806,1778069441000,-158.0,0.0002,2]
[421725802,1778069441000,-25877.32509415,0.0002,2]
[421725810,1778069441000,-250.0,0.00020521,2]
[421725800,1778069441000,-500.0,0.00019973,2]
[421725799,1778069441000,-500.0,0.00019973,2]
[421725797,1778069441000,-500.0,0.00019973,2]
[421725791,1778069441000,-500.0,0.00019005,2]
[421725792,1778069441000,-500.0,0.00019178,2]
[421725795,1778069441000,-150.0,0.00019973,2]
[421725807,1778069441000,-185.0,0.0002,2]
[421725798,1778069441000,-492.59344334,0.00019973,2]
[421725805,1778069441000,-215.0,0.0002,2]
[421725819,1778069441000,-158.0,0.00021,2]
[421725808,1778069441000,-1252.0,0.00020024,2]
[421725804,1778069441000,-4447.23336375,0.0002,2]
[421725803,1778069441000,-26729.49640884,0.0002,2]
[421725809,1778069441000,-763.1,0.00020381,2]
[421725812,1778069441000,-1000.0,0.00020521,2]
[421725815,1778069441000,-2765.74807406,0.00020932,2]
[421725817,1778069441000,-151.0,0.00021,2]
[421725822,1778069441000,-1500.0,0.00021068,2]
[421725811,1778069441000,-253.55632653,0.00020521,2]
[421725814,1778069441000,-408.20814367,0.00020521,2]
[421725813,1778069441000,-1000.0,0.00020521,2]
[421725816,1778069441000,-200.0,0.00020982,2]
[421725801,1778069441000,-151.0,0.0002,2]
[421725790,1778069441000,-1024.0,0.00019005,2]
[421725778,1778069441000,-433.0,0.00017339,2]
[421725794,1778069441000,-3292.0,0.00019964,2]
[421725765,1778069441000,-500.0,0.00016498,2]
[421725767,1778069441000,-500.0,0.00016498,2]
[421725766,1778069441000,-500.0,0.00016498,2]
[421725769,1778069441000,-322.77529578,0.00016498,2]
[421725768,1778069441000,-500.0,0.00016498,2]
[421725771,1778069441000,-52336.78,0.00016499,2]
[421725770,1778069441000,-9999.99,0.00016499,2]
[421725774,1778069441000,-150.99,0.00016499,2]
[421725772,1778069441000,-999.99,0.00016499,2]
[421725773,1778069441000,-1680.0,0.00016499,2]
[421725776,1778069441000,-1024.0,0.00017277,2]
[421725777,1778069441000,-260.96,0.00017326,2]
[421725796,1778069441000,-500.0,0.00019973,2]
[421725786,1778069441000,-763.1,0.0001841,2]
[421725775,1778069441000,-199.36,0.00016712,2]
[421725820,1778069441000,-185.0,0.00021,2]
[421725779,1778069441000,-500.0,0.00017674,2]
[421725783,1778069441000,-2765.74807406,0.00018086,2]
[421725782,1778069441000,-53253.95371176,0.00018032,2]
[421725781,1778069441000,-1024.0,0.00017709,2]
[421725780,1778069441000,-2500.0,0.0001768,2]
[421725785,1778069441000,-2351.0,0.00018149,2]
[421725784,1778069441000,-1024.0,0.00018141,2]
[421725789,1778069441000,-270.08,0.000189,2]
[421725788,1778069441000,-736.0,0.00018629,2]
[421725793,1778069441000,-1108.97627111,0.000199,2]
[421725787,1778069441000,-1024.0,0.00018573,2]
[421725818,1778069441000,-215.0,0.00021,2]
[421725852,1778069441000,-158.0,0.00023,2]
[421725823,1778069441000,-1500.0,0.00021068,2]
[421725851,1778069441000,-215.0,0.00023,2]
[421725856,1778069441000,-1108.9762711,0.00023109,2]
[421725857,1778069441000,-2538.0,0.00023143,2]
[421725860,1778069441000,-4069.0,0.00023377,5]
[421725858,1778069441000,-750.0,0.0002326,2]
[421725861,1778069441000,-500.0,0.00023567,2]
[421725862,1778069441000,-1500.0,0.00023568,2]